Workbook

Sheet Cover
B2: 3GPP TSG-RAN WG4 Meeting #95-e | J2: R4-200xxxx
B3: Electronic Meeting, 25 May - 5 June, 2020
B5: Source: Huawei, HiSilicon
B6: Title: Summary of ideal and impairment results for NR HST demodulation requirements
B7: Agenda: 6.17.2.1
B8: Document for: Information

Sheet SFN
A1: Propagation condition | B1: SCS [kHz] | C1: CBW [MHz] | D1: Maximum Doppler shift[Hz] | E1: Antenna configuration | F1: CMCC | H1: DOCOMO | J1: Ericsson | L1: Huawei | N1: Intel | P1: Qualcomm | R1: Vivo | T1: SPAN | V1: Average | X1: 38.101-4 req
F2: Ideal | G2: Impairment | H2: Ideal | I2: Impairment | J2: Ideal | K2: Impairment | L2: Ideal | M2: Impairment | N2: Ideal | O2: Impairment | P2: Ideal | Q2: Impairment | R2: Ideal | S2: Impairment | T2: Ideal | U2: Impairment | V2: Ideal | W2: Impairment
A3: HST-SFN | B3: 15 | C3: 10 | D3: 870 | E3: 2x2 | L3: 9.4 | M3: 11.4 | T3: =MAX(F3,H3,J3,L3,N3,P3,R3)-MIN(F3,H3,J3,L3,N3,P3,R3) -> 0 | U3: =MAX(G3,I3,K3,M3,O3,Q3,S3)-MIN(G3,I3,K3,M3,O3,Q3,S3) -> 0 | V3: =AVERAGE(F3,H3,J3,L3,N3,P3,R3) -> 9.4 | W3: =AVERAGE(G3,I3,K3,M3,O3,Q3,S3) -> 11.4 | X3: =W3+1 -> 12.4
B4: 15 | C4: 10 | D4: 870 | E4: 2x4 | L4: 6.8 | M4: 8.8 | T4: =MAX(F4,H4,J4,L4,N4,P4,R4)-MIN(F4,H4,J4,L4,N4,P4,R4) -> 0 | U4: =MAX(G4,I4,K4,M4,O4,Q4,S4)-MIN(G4,I4,K4,M4,O4,Q4,S4) -> 0 | V4: =AVERAGE(F4,H4,J4,L4,N4,P4,R4) -> 6.8 | W4: =AVERAGE(G4,I4,K4,M4,O4,Q4,S4) -> 8.8 | X4: =W4+1 -> 9.8
B5: 30 | C5: 40 | D5: 1667 | E5: 2x2 | L5: 10.61 | M5: 12.61 | T5: 0 | U5: 0 | V5: 10.61 | W5: 12.61 | X5: 13.61
B6: 30 | C6: 40 | D6: 1667 | E6: 2x4 | L6: 7.93 | M6: 9.93 | T6: 0 | U6: 0 | V6: 7.93 | W6: 9.93 | X6: 10.93

Sheet Single tap
A1: Propagation condition | B1: SCS [kHz] | C1: CBW [MHz] | D1: Maximum Doppler shift[Hz] | E1: Antenna configuration | F1: CMCC | H1: DOCOMO | J1: Ericsson | L1: Huawei | N1: Intel | P1: Qualcomm | R1: Vivo | T1: SPAN | V1: Average | X1: 38.101-4 req
F2: Ideal | G2: Impairment | H2: Ideal | I2: Impairment | J2: Ideal | K2: Impairment | L2: Ideal | M2: Impairment | N2: Ideal | O2: Impairment | P2: Ideal | Q2: Impairment | R2: Ideal | S2: Impairment | T2: Ideal | U2: Impairment | V2: Ideal | W2: Impairment
A3: HST single-tap | B3: 15 | C3: 10 | D3: 870 | E3: 1x2 | J3: 6.41 | K3: 7.41 | L3: 7.87 | M3: 9.87 | T3: =MAX(F3,H3,J3,L3,N3,P3,R3)-MIN(F3,H3,J3,L3,N3,P3,R3) -> 1.46 | U3: =MAX(G3,I3,K3,M3,O3,Q3,S3)-MIN(G3,I3,K3,M3,O3,Q3,S3) -> 2.46 | V3: =AVERAGE(F3,H3,J3,L3,N3,P3,R3) -> 7.14 | W3: =AVERAGE(G3,I3,K3,M3,O3,Q3,S3) -> 8.64 | X3: =W3+0.8 -> 9.44
B4: 15 | C4: 10 | D4: 870 | E4: 1x4 | J4: 3.41 | K4: 4.41 | L4: 5.7 | M4: 7.7 | T4: =MAX(F4,H4,J4,L4,N4,P4,R4)-MIN(F4,H4,J4,L4,N4,P4,R4) -> 2.29 | U4: 3.29 | V4: =AVERAGE(F4,H4,J4,L4,N4,P4,R4) -> 4.555 | W4: 6.055 | X4: =W4+0.8 -> 6.855
C5: 10 | D5: 972 | E5: 1x2 | J5: 6.41 | K5: 7.41 | L5: 7.91 | M5: 9.91 | T5: 1.5 | U5: 2.5 | V5: 7.16 | W5: 8.66 | X5: 9.46
C6: 10 | D6: 972 | E6: 1x4 | J6: 3.42 | K6: 4.42 | L6: 5.68 | M6: 7.68 | T6: 2.26 | U6: 3.26 | V6: 4.55 | W6: 6.05 | X6: 6.85
B7: 30 | C7: 40 | D7: 1667 | E7: 1x2 | J7: 6.53 | K7: 7.53 | L7: 8.97 | M7: 10.97 | T7: 2.44 | U7: 3.44 | V7: 7.75 | W7: 9.25 | X7: 10.05
B8: 30 | C8: 40 | D8: 1667 | E8: 1x4 | J8: 3.53 | K8: 4.53 | L8: 7.46 | M8: 9.46 | T8: 3.93 | U8: 4.93 | V8: 5.495 | W8: 6.995 | X8: 7.795

Sheet Multi-path fading
A1: Propagation condition | B1: SCS [kHz] | C1: CBW [MHz] | D1: Maximum Doppler shift[Hz] | E1: Antenna configuration | F1: CMCC | H1: DOCOMO | J1: Ericsson | L1: Huawei | N1: Intel | P1: Qualcomm | R1: Vivo | T1: SPAN | V1: Average | X1: 38.101-4 req
F2: Ideal | G2: Impairment | H2: Ideal | I2: Impairment | J2: Ideal | K2: Impairment | L2: Ideal | M2: Impairment | N2: Ideal | O2: Impairment | P2: Ideal | Q2: Impairment | R2: Ideal | S2: Impairment | T2: Ideal | U2: Impairment | V2: Ideal | W2: Impairment
A3: HST multi-path fading | B3: 15 | C3: 10 | D3: 600 | E3: 2x2 | J3: 6.22 | K3: 7.22 | L3: 6.7 | M3: 8.7 | N3: 4.9 | O3: 6.9 | P3: 6.68 | Q3: 8.68 | T3: =MAX(F3,H3,J3,L3,N3,P3,R3)-MIN(F3,H3,J3,L3,N3,P3,R3) -> 1.8 | U3: =MAX(G3,I3,K3,M3,O3,Q3,S3)-MIN(G3,I3,K3,M3,O3,Q3,S3) -> 1.8 | V3: =AVERAGE(F3,H3,J3,L3,N3,P3,R3) -> 6.125 | W3: =AVERAGE(G3,I3,K3,M3,O3,Q3,S3) -> 7.875 | X3: =W3+0.5 -> 8.375
B4: 15 | C4: 10 | D4: 600 | E4: 2x4 | J4: 2.7 | K4: 3.7 | L4: 2.94 | M4: 4.94 | N4: 2.1 | O4: 4.1 | P4: 3.07 | Q4: 5.07 | T4: =MAX(F4,H4,J4,L4,N4,P4,R4)-MIN(F4,H4,J4,L4,N4,P4,R4) -> 0.97 | U4: =MAX(G4,I4,K4,M4,O4,Q4,S4)-MIN(G4,I4,K4,M4,O4,Q4,S4) -> 1.37 | V4: =AVERAGE(F4,H4,J4,L4,N4,P4,R4) -> 2.7025 | W4: =AVERAGE(G4,I4,K4,M4,O4,Q4,S4) -> 4.4525 | X4: =W4+0.5 -> 4.9525
B5: 30 | C5: 40 | D5: 1200 | E5: 2x2 | J5: 7.03 | K5: 8.03 | L5: 7.6 | M5: 9.6 | N5: 7.2 | O5: 9.2 | P5: 7.09 | Q5: 9.09 | T5: 0.57 | U5: =MAX(G5,I5,K5,M5,O5,Q5,S5)-MIN(G5,I5,K5,M5,O5,Q5,S5) -> 1.57 | V5: 7.23 | W5: =AVERAGE(G5,I5,K5,M5,O5,Q5,S5) -> 8.98 | X5: 9.48
B6: 30 | C6: 40 | D6: 1200 | E6: 2x4 | J6: 3.5 | K6: 4.5 | L6: 3.54 | M6: 5.54 | N6: 3.8 | O6: 5.8 | P6: 3.39 | Q6: 5.39 | T6: 0.41 | U6: =MAX(G6,I6,K6,M6,O6,Q6,S6)-MIN(G6,I6,K6,M6,O6,Q6,S6) -> 1.3 | V6: 3.5575 | W6: =AVERAGE(G6,I6,K6,M6,O6,Q6,S6) -> 5.3075 | X6: 5.8075
